bitfinex-derivatives/quotes_SOLF0:USTF0_20250404
["timestamp","ask_amount","ask_price","bid_price","bid_amount"]
[1743778770525,8.5138,117.5,117.49,0.05862338]
[1743778770824,38.28498951,117.52,117.46,1.7027073]
[1743778771219,38.22,117.52,117.46,1.7027073]
[1743778771921,0.06469801,117.5,117.48,0.05498248]
[1743778772229,8.5145,117.49,117.48,0.05498248]
[1743778772424,0.06469801,117.5,117.48,0.05498248]
[1743778773325,8.5145,117.49,117.48,0.05498248]
[1743778773828,0.06469801,117.5,117.48,0.05498248]
[1743778774826,8.5145,117.49,117.48,0.05498248]
[1743778775526,0.06469801,117.5,117.48,0.05498248]
[1743778777128,8.5145,117.49,117.48,0.05498248]
[1743778780336,8.5166,117.47,117.42,75.64313803]
[1743778780636,38.28,117.51,117.42,75.64313803]
[1743778780832,38.28,117.51,117.42,37.54313803]
[1743778781033,38.28,117.51,117.44,8.5181]
[1743778781236,38.28,117.51,117.44,37.54313803]
[1743778781537,8.56891274,117.49,117.46,0.06194456]
[1743778782038,8.516,117.47,117.46,0.06194456]
[1743778782233,38.2,117.48,117.4,343.82313803]
[1743778782428,38.2,117.48,117.4,306.28]
[1743778782632,38.2,117.48,117.39,38.18]
[1743778782831,38.2,117.48,117.38,37.54313803]
[1743778783033,38.2,117.48,117.38,75.70313803]
[1743778783538,0.06420944,117.44,117.42,0.06528104]
[1743778784135,8.58290944,117.44,117.42,0.06528104]
[1743778784336,0.06420944,117.44,117.42,0.06528104]
[1743778784836,8.5189,117.43,117.42,0.06528104]
[1743778796951,8.5189,117.43,117.42,8.104e-05]
[1743778799151,8.58260944,117.44,117.42,8.104e-05]
[1743778799445,0.06420944,117.44,117.42,8.104e-05]
[1743778799753,8.5189,117.43,117.42,8.104e-05]
[1743778801252,8.58290944,117.44,117.42,8.104e-05]
[1743778801449,0.06420944,117.44,117.42,8.104e-05]
[1743778801847,8.5189,117.43,117.42,8.104e-05]
[1743778805055,0.06420944,117.44,117.42,8.104e-05]
[1743778805748,0.06420944,117.44,117.42,23.51231924]
[1743778805948,8.5141,117.5,117.43,23.5122382]
[1743778806154,46.63313806,117.51,117.48,23.5122382]
[1743778806747,93.26627615,117.52,117.5,23.5122382]
[1743778806959,0.05636228,117.52,117.5,23.57683269]
[1743778807155,139.8994142,117.53,117.51,23.5122382]
[1743778807454,233.1656903,117.54,117.52,38.14]
[1743778807656,118.94345591,117.55,117.54,37.48814746]
[1743778807856,95.92252616,117.55,117.54,45.99904746]
[1743778808156,34.96884403,117.55,117.54,83.47629492]
[1743778808356,0.05519821,117.56,117.54,37.48814746]
[1743778808549,38.12,117.63,117.54,37.48814746]
[1743778808747,0.05757843,117.56,117.54,37.54990511]
[1743778808957,38.12,117.63,117.55,38.12]
[1743778809158,8.5102,117.55,117.54,0.06097987]
[1743778809349,38.12,117.6,117.52,84.12014746]
[1743778809555,0.06414105,117.56,117.53,0.06070056]
[1743778810459,8.5109,117.54,117.53,0.06070056]
[1743778810657,0.06414105,117.56,117.53,0.06070056]
[1743778811052,8.5109,117.54,117.53,0.06070056]
[1743778811358,0.06414105,117.56,117.53,0.06070056]
[1743778812063,8.5102,117.55,117.53,0.06070056]
[1743778812259,0.06414105,117.56,117.53,0.06070056]
[1743778812557,0.06414105,117.56,117.55,8.5102]
[1743778812765,38.1,117.66,117.55,38.1]
[1743778812957,38.1,117.66,117.56,37.48814746]
[1743778813256,8.5062,117.61,117.57,8.5086]
[1743778813458,38.1,117.66,117.56,37.48814746]
[1743778813660,38.1,117.66,117.56,45.99714746]
[1743778814061,0.06516497,117.62,117.6,0.06169351]
[1743778814658,8.57046497,117.62,117.6,0.06169351]
[1743778814861,0.06516497,117.62,117.6,0.06169351]
[1743778815261,8.5059,117.61,117.6,0.06169351]
[1743778816065,8.57046497,117.62,117.6,0.06169351]
[1743778816264,0.06516497,117.62,117.6,0.06169351]
[1743778817060,8.5059,117.61,117.6,0.06169351]
[1743778817265,0.06516497,117.62,117.6,0.06169351]
[1743778818164,0.06516497,117.62,117.61,8.5059]
[1743778818369,39.55943458,117.73,117.61,356.0]
[1743778818665,8.4997,117.7,117.66,8.5018]
[1743778818969,38.08,117.75,117.67,38.08]
[1743778819159,8.5005,117.69,117.67,38.08]
[1743778819565,8.55989427,117.69,117.67,38.13372707]
[1743778819770,0.05939427,117.69,117.67,38.13372707]
[1743778819965,0.05939427,117.69,117.67,46.63372707]
[1743778820164,0.05939427,117.69,117.67,38.13372707]
[1743778821368,0.05939427,117.69,117.67,46.63482707]
[1743778821770,0.05939427,117.69,117.67,38.13372707]
[1743778821970,0.05939427,117.69,117.68,8.5008]
[1743778822374,0.05939427,117.69,117.68,45.98894746]
[1743778822966,37.48814746,117.81,117.68,45.98814746]
[1743778823169,38.06,117.79,117.69,37.48814746]
[1743778823373,37.48814746,117.77,117.62,306.06]
[1743778823675,38.06,117.78,117.68,37.48814746]
[1743778823871,38.06,117.78,117.69,42.4796]
[1743778824069,0.05449927,117.74,117.72,0.06316025]
[1743778824370,8.4972,117.73,117.72,0.06316025]
[1743778825578,0.05449927,117.74,117.72,0.06316025]
[1743778825875,0.05449927,117.74,117.72,75.59130771]
[1743778826173,37.48814746,117.85,117.72,121.57945517]
[1743778826376,75.52814746,117.85,117.75,37.48814746]
[1743778826576,75.52814746,117.85,117.76,38.04]
[1743778827376,0.05977617,117.82,117.79,0.05360517]
[1743778828676,0.05977617,117.82,117.8,8.4917]
[1743778828877,0.05977617,117.82,117.79,38.09360517]
[1743778830275,0.05977617,117.82,117.79,394.09360517]
[1743778830575,37.48814746,117.94,117.8,37.48814746]
[1743778830776,37.48814746,117.94,117.86,8.4878]
[1743778830777,75.52814746,117.94,117.86,8.4878]
[1743778830983,38.04,117.94,117.86,8.4878]
[1743778831176,38.04,117.94,117.85,75.52814746]
[1743778831376,8.4862,117.89,117.85,75.52814746]
[1743778831572,8.4862,117.89,117.88,0.05633118]
[1743778832379,0.05872775,117.9,117.88,8.54263118]
[1743778832577,0.05872775,117.9,117.88,0.05633118]
[1743778833279,38.02,117.89,117.88,0.05633118]
[1743778833479,46.5057,117.89,117.88,0.05633118]
[1743778833680,75.50814746,117.89,117.78,393.48814746]
[1743778834076,37.48814746,117.87,117.77,343.74]
[1743778834279,38.02,117.86,117.77,381.22814746]
[1743778834479,37.48814746,117.85,117.76,8.4944]
[1743778834678,38.02,117.84,117.76,37.48814746]
[1743778834879,0.06399423,117.82,117.79,0.05545192]
[1743778835072,0.06399423,117.82,117.8,46.4918]
[1743778835278,0.06399423,117.82,117.8,75.48814746]
[1743778835481,18.4415724,117.94,117.8,83.96814746]
[1743778835687,38.0,117.93,117.83,37.48814746]
[1743778835886,38.0,117.93,117.84,38.0]
[1743778836281,75.48814746,117.93,117.84,38.0]
[1743778836783,0.06310715,117.9,117.87,0.05406188]
[1743778837681,38.06310715,117.9,117.87,0.05406188]
[1743778838581,8.4864,117.88,117.87,0.05406188]
[1743778839579,38.06310715,117.9,117.8,356.0]
[1743778839775,38.06310715,117.9,117.8,8.4917]
[1743778839983,8.4895,117.84,117.8,8.4917]
[1743778840184,38.0,117.9,117.81,60.6515524]
[1743778840484,38.0,117.9,117.79,404.2915524]
[1743778840686,0.06307907,117.87,117.84,0.06038629]
[1743778841085,8.4878,117.86,117.84,0.06038629]
[1743778841283,0.06307907,117.87,117.84,0.06038629]
[1743778841682,8.4885,117.85,117.84,0.06038629]
[1743778842384,0.06307907,117.87,117.84,0.06038629]
[1743778842589,0.00901719,117.87,117.85,98.6315524]
[1743778842991,0.00901719,117.87,117.85,107.1115524]
[1743778843189,0.00901719,117.87,117.85,98.6315524]
[1743778843389,0.00901719,117.87,117.86,8.4878]
[1743778843793,0.00901719,117.87,117.86,8.48]
[1743778844495,0.00901719,117.87,117.86,16.9678]
[1743778846892,18.4837,117.92,117.88,8.4857]
[1743778847090,18.4837,117.92,117.89,37.98]
[1743778847487,10.0,117.92,117.89,37.98]
[1743778847692,10.0,117.92,117.89,98.6315524]
[1743778847886,10.0,117.92,117.89,107.1706765]
[1743778847887,10.05980057,117.92,117.89,107.1706765]
[1743778848086,10.05980057,117.92,117.89,38.0338241]
[1743778848992,18.54370057,117.92,117.89,46.5191241]
[1743778850290,8.4843,117.91,117.89,38.0338241]
[1743778851493,8.4849,117.9,117.89,0.0538241]
[1743778853500,10.05980057,117.92,117.89,0.0538241]
[1743778853693,0.05980057,117.92,117.89,0.0538241]
[1743778853889,8.4847,117.91,117.89,0.0538241]
[1743778854095,0.05980057,117.92,117.89,0.0538241]
[1743778854299,0.05980057,117.92,117.89,60.7053765]
[1743778854600,8.54350057,117.92,117.89,69.1906765]
[1743778854896,10.0,117.99,117.91,60.6515524]
[1743778855091,10.0,117.99,117.95,69.1324524]
[1743778855297,10.0,117.99,117.95,98.6115524]
[1743778855898,10.0,117.99,117.97,60.6515524]
[1743778856097,0.06520402,117.98,117.97,60.6515524]
[1743778856288,0.06520402,117.98,117.97,69.1314524]
[1743778856691,10.0,117.99,117.97,60.6515524]
[1743778856999,8.476,118.03,118.0,8.4776]
[1743778857200,8.476,118.03,118.0,60.6515524]
[1743778857403,37.96,118.07,118.0,60.6515524]
[1743778857798,0.05931631,118.05,118.02,0.05924131]
[1743778858098,8.4756,118.03,118.02,0.05924131]
[1743778858700,0.05931631,118.05,118.02,75.24057271]
[1743778859300,0.05931631,118.05,118.03,8.4754]
[1743778859597,8.474,118.06,118.04,37.2213314]
[1743778859804,37.94,118.1,118.02,439.71657271]
[1743778860004,37.94,118.1,118.02,75.1813314]
[1743778860205,8.4738,118.06,118.03,8.4751]
[1743778860404,8.4738,118.06,118.03,45.6964314]
[1743778860600,16.9356,118.14,118.03,37.2213314]
[1743778860801,0.056792,118.06,118.03,37.27755726]
[1743778861106,37.94,118.11,118.01,75.1613314]
[1743778861305,0.05401088,118.06,118.05,37.2213314]
[1743778861506,37.2213314,118.16,118.05,75.1613314]
[1743778861701,37.2213314,118.16,118.05,37.94]
[1743778861909,343.2,118.17,118.05,37.94]
[1743778862403,37.2213314,118.15,118.05,37.94]
[1743778862602,0.04967871,118.12,118.1,0.06267243]
[1743778862802,8.4699,118.11,118.1,0.06267243]
[1743778863196,46.38,118.11,118.01,37.2213314]
[1743778863399,37.92,118.11,118.01,37.2213314]
[1743778863599,37.92,118.1,118.01,37.2213314]
[1743778863799,37.2213314,118.13,118.01,37.2213314]
[1743778864006,37.92,118.12,118.05,37.2213314]
[1743778864513,0.05741361,118.1,118.07,0.06534215]
[1743778864811,37.92,118.09,118.07,0.06534215]
[1743778865004,8.4726,118.08,118.07,0.06534215]
[1743778867109,37.92,118.09,118.0,75.1413314]
[1743778867602,37.92,118.09,118.0,37.92]
[1743778867800,75.1413314,118.09,117.98,37.2213314]
[1743778868004,8.4767,118.02,117.98,37.2213314]
[1743778868203,0.05770802,118.05,118.02,0.05468953]
[1743778868405,37.92,118.06,117.98,75.1413314]
[1743778868603,0.05744518,118.05,118.02,0.05850708]
[1743778869002,342.2813314,118.15,118.04,37.2213314]
[1743778869208,37.92,118.14,118.07,8.4727]
[1743778869410,37.92,118.14,118.05,37.92]
[1743778869605,37.92,118.14,118.07,9.13]
[1743778870010,8.4726,118.08,118.07,9.13]
[1743778871913,0.0535046,118.09,118.07,9.13]
[1743778872807,305.06,118.15,118.07,47.03]
[1743778873010,37.9,118.15,118.07,84.2513314]
[1743778873304,8.4689,118.13,118.1,8.4705]
[1743778873611,37.9,118.17,118.07,84.2513314]
[1743778873809,8.4696,118.12,118.09,8.4709]
[1743778874211,8.4696,118.12,118.11,0.05714425]
[1743778874408,8.52992117,118.13,118.11,0.05714425]
[1743778874613,0.06112117,118.13,118.1,0.05698636]
[1743778875414,8.4699,118.11,118.1,0.05698636]
[1743778876714,46.3699,118.11,118.1,0.05698636]
[1743778877210,8.472,118.08,118.07,19.33]
[1743778877516,37.9,118.11,118.07,10.2]
[1743778878315,0.06253488,118.1,118.08,0.06298373]
[1743778879016,8.4713,118.09,118.08,0.06298373]
[1743778879415,8.4748,118.05,118.02,33.89]
[1743778879613,37.9,118.09,118.02,33.89]
[1743778879814,37.9,118.09,118.03,8.4751]
[1743778880314,37.9,118.09,118.02,42.3659]
[1743778880614,1.47342126,118.19,118.08,37.2213314]
[1743778880820,304.92,118.3,118.14,37.2213314]
[1743778881008,37.2213314,118.25,118.14,37.2213314]
[1743778881208,37.28557787,118.23,118.21,2.783e-05]
[1743778881408,37.2213314,118.23,118.15,9.13]
[1743778881607,37.9,118.24,118.15,9.13]
[1743778881815,37.2213314,118.27,118.16,37.2213314]
[1743778882016,159.0,118.37,118.22,37.2213314]
[1743778882210,236.01109145,118.36,118.22,37.2213314]
[1743778882415,38.58,118.35,118.23,37.2213314]
[1743778882616,0.05799159,118.31,118.28,0.05494207]
[1743778883818,0.05799159,118.31,118.29,37.2213314]
[1743778884012,0.05799159,118.31,118.29,68.62357937]
[1743778884417,0.05799159,118.31,118.28,0.05494207]
[1743778884620,0.05799159,118.31,118.29,60.16687937]
[1743778884820,0.05799159,118.31,118.28,0.05494207]
[1743778886018,219.16687937,118.5,118.23,10.2]
[1743778886223,60.16687937,118.38,118.26,60.16687937]
[1743778886420,8.4522,118.36,118.28,60.16687937]
[1743778886615,60.16687937,118.41,118.28,40.58]
[1743778886815,60.16687937,118.44,118.35,8.4526]
[1743778887022,40.66,118.45,118.34,40.66]
[1743778887223,61.63690852,118.46,118.34,40.66]
[1743778887526,92.8056387,118.39,118.38,0.06259595]
[1743778887722,92.72659541,118.39,118.38,405.70947532]
[1743778888028,0.05405096,118.41,118.38,474.25375874]
[1743778888224,232.014096,118.42,118.4,60.16687937]
[1743778888419,290.01762,118.43,118.4,60.16687937]
[1743778888731,103.11628781,118.55,118.42,60.16687937]
[1743778889028,103.11628781,118.55,118.43,41.48]
[1743778889322,472.471693,118.48,118.43,41.48]
[1743778889518,348.07701338,118.46,118.43,0.06461287]
[1743778889725,348.07701338,118.46,118.45,60.16687937]
[1743778890125,354.835001,118.51,118.45,68.60687937]
[1743778890326,354.835001,118.51,118.48,60.16687937]
[1743778890521,354.835001,118.51,118.48,102.52687937]
[1743778891431,0.06156671,118.51,118.48,102.59028827]
[1743778891830,0.06156671,118.51,118.5,60.16687937]
[1743778892432,0.06156671,118.51,118.49,43.94]
[1743778892930,0.06156671,118.51,118.5,706.53815801]
[1743778893424,60.16687937,118.56,118.5,706.53815801]
[1743778894431,335.38339771,118.6,118.5,706.53815801]
[1743778894630,0.06478435,118.54,118.52,0.06444097]
[1743778894933,60.16687937,118.56,118.51,353.269079]
[1743778895138,0.06233792,118.54,118.52,0.0582883]
[1743778895429,193.73862567,118.6,118.52,376.87863924]
[1743778895635,60.16687937,118.59,118.52,376.87863924]
[1743778895935,149.25862567,118.6,118.54,0.05894598]
[1743778896133,0.06481032,118.57,118.54,0.05894598]
[1743778896333,8.4384,118.55,118.54,0.05894598]
[1743778897231,60.16687937,118.56,118.54,4.598e-05]
[1743778897627,304.1,118.57,118.54,4.598e-05]
[1743778897827,303.98,118.61,118.54,4.598e-05]
[1743778898031,60.16687937,118.6,118.54,4.598e-05]
[1743778898227,60.16687937,118.58,118.54,4.598e-05]
[1743778898426,60.16687937,118.56,118.54,4.598e-05]
[1743778898632,8.4384,118.55,118.54,4.598e-05]
[1743778900335,120.33375874,118.56,118.51,9.1]
[1743778900538,120.33375874,118.56,118.42,60.16687937]
[1743778900539,60.16687937,118.53,118.4,45.52]
[1743778900736,364.14687937,118.55,118.44,105.74687937]
[1743778900936,105.76687937,118.56,118.44,105.74687937]
[1743778901241,60.16687937,118.56,118.44,105.74687937]
[1743778901545,60.16687937,118.6,118.5,0.06398289]
[1743778901735,47.38810665,118.62,118.5,0.06398289]
[1743778901937,303.92,118.68,118.54,60.16687937]
[1743778902141,60.16687937,118.67,118.56,60.16687937]
[1743778902341,60.16687937,118.67,118.57,45.96]
[1743778902538,303.92,118.68,118.57,45.96]
[1743778902742,303.92,118.68,118.61,0.06431314]
[1743778903335,364.08687937,118.68,118.61,0.06431314]
[1743778903540,68.57412597,118.68,118.61,270.10915372]
[1743778903744,60.16687937,118.7,118.62,223.78484058]
[1743778903944,8.4321,118.64,118.62,223.78484058]
[1743778904143,303.8,118.72,118.62,223.78484058]
[1743778904443,8.4327,118.63,118.62,0.06428156]
[1743778904643,303.8,118.72,118.62,54.72]
[1743778904940,8.4316,118.65,118.62,46.3]
[1743778905147,46.38,118.68,118.61,279.73105072]
[1743778905344,106.54687937,118.68,118.66,0.06015259]
[1743778905544,106.54687937,118.68,118.61,279.73105072]
[1743778905746,106.54687937,118.68,118.66,0.0604705]
[1743778905945,60.16687937,118.7,118.61,279.73105072]
[1743778906246,60.16687937,118.76,118.64,60.16687937]
[1743778906445,60.16687937,118.76,118.65,46.42]
[1743778907139,0.05383099,118.72,118.69,0.0535481]
[1743778907546,8.4293,118.68,118.64,8.4316]
[1743778907743,0.0621834,118.72,118.66,60.16687937]
[1743778907942,328.9524,118.85,118.71,60.16687937]
[1743778907943,60.16687937,118.83,118.71,60.16687937]
[1743778908245,60.16687937,118.79,118.69,60.16687937]
[1743778908546,106.84687937,118.79,118.68,46.68]
[1743778908746,303.7,118.78,118.68,46.68]
[1743778909242,303.7,118.78,118.72,0.0584768]
[1743778909447,303.7,118.78,118.72,46.7384768]
[1743778909648,8.4246,118.75,118.72,46.7384768]
[1743778909838,303.7,118.78,118.72,46.7384768]
[1743778910647,8.424,118.76,118.73,1.55]
[1743778910847,303.7,118.78,118.73,1.55]
[1743778911044,303.56,118.83,118.73,1.55]
[1743778911238,60.16687937,118.84,118.73,1.55]
[1743778911445,10.0,118.9,118.83,60.16687937]
[1743778911648,10.0,118.9,118.85,60.16687937]
[1743778911849,10.0,118.9,118.84,47.14]
[1743778912051,10.0,118.9,118.86,0.05817995]
[1743778912446,8.4157,118.87,118.86,7.995e-05]
[1743778913354,10.0,118.9,118.86,107.36695932]
[1743778913548,10.0,118.9,118.86,47.20007995]
[1743778913745,0.06027824,118.89,118.87,60.16687937]
[1743778913941,8.08828843,118.9,118.87,60.16687937]
[1743778914146,303.34,119.0,118.89,60.16687937]
[1743778914347,303.34,119.0,118.91,60.16687937]
[1743778915048,363.50687937,119.0,118.9,47.3]
[1743778915352,8.41,118.95,118.94,0.05930637]
[1743778916252,107.54687937,118.98,118.91,10.28]
[1743778916754,8.4122,118.92,118.91,10.28]
[1743778918950,0.05358062,118.93,118.9,0.05605994]
[1743778919648,303.09358062,118.93,118.83,47.22]
[1743778919855,303.04,118.93,118.83,47.22]
[1743778920053,303.04,118.93,118.84,60.16687937]
[1743778920249,60.16687937,118.92,118.78,47.32]
[1743778920449,60.16687937,118.88,118.77,60.16687937]
[1743778920645,47.3,118.87,118.77,60.16687937]
[1743778920853,0.05364376,118.84,118.81,0.05678954]
[1743778921158,8.4242,118.75,118.74,58.95]
[1743778921355,60.16687937,118.75,118.63,50.99248973]
[1743778921553,8.432,118.64,118.63,50.99248973]
[1743778921747,107.68687937,118.64,118.54,160.17183081]
[1743778921951,47.52,118.64,118.55,0.18]
[1743778922150,303.02,118.67,118.59,47.56]
[1743778922355,0.06015046,118.62,118.6,0.05685589]
[1743778922545,8.4343,118.61,118.6,0.05685589]
[1743778922852,8.4343,118.61,118.55,0.18]
[1743778922853,128.77375874,118.62,118.55,0.18]
[1743778923053,60.16687937,118.57,118.55,0.18]
[1743778923255,8.4377,118.56,118.55,0.18]
[1743778923650,60.16687937,118.6,118.54,100.00495144]
[1743778923852,0.05661307,118.57,118.54,100.0593211]
[1743778924047,47.72,118.56,118.54,100.0593211]
[1743778924251,8.4384,118.55,118.54,100.0593211]
[1743778924653,8.4398,118.53,118.49,335.51268473]
[1743778925158,8.4398,118.53,118.52,319.30280731]
[1743778925356,1.46798279,118.65,118.52,375.46280731]
[1743778925555,90.37127557,118.68,118.63,60.16687937]
[1743778925858,61.63347018,118.83,118.65,120.33375874]
[1743778926062,1.46659081,118.83,118.72,8.4263]
[1743778926259,107.94687937,118.86,118.72,47.78]
[1743778926455,303.22,118.83,118.72,47.78]
[1743778926756,108.00687937,118.82,118.72,47.78]
[1743778926947,8.4247,118.75,118.72,47.78]
[1743778927148,0.06408954,118.75,118.72,0.05984548]
[1743778927452,0.06408954,118.75,118.73,47.9]
[1743778927859,0.06408954,118.75,118.73,56.32]
[1743778928060,0.06408954,118.75,118.73,47.9]
[1743778928453,0.06408954,118.75,118.72,60.22672485]
[1743778928653,0.06408954,118.75,118.73,8.4256]
[1743778928964,0.06408954,118.75,118.74,60.16687937]
[1743778929161,61.63198831,118.87,118.73,8.4254]
[1743778929459,8.4224,118.78,118.74,60.16687937]
[1743778929758,47.94,118.86,118.76,60.16687937]
[1743778929950,47.94,118.86,118.76,108.10687937]
[1743778930357,47.94,118.86,118.74,60.16687937]
[1743778930358,0.05940277,118.82,118.8,0.05331935]
[1743778930548,8.4199,118.81,118.8,0.05331935]
[1743778930751,363.32687937,118.81,118.69,226.50922768]
[1743778930958,60.16687937,118.78,118.69,226.50922768]
[1743778931153,8.4252,118.74,118.69,226.50922768]
[1743778931355,60.16687937,118.79,118.69,286.67610705]
[1743778931860,0.05711142,118.75,118.73,0.05836969]
[1743778932964,0.05711142,118.75,118.66,48.66]
[1743778933263,8.4276,118.71,118.67,60.16687937]
[1743778933464,48.68,118.77,118.66,48.66]
[1743778933660,48.68,118.77,118.68,60.16687937]
[1743778933854,8.4269,118.72,118.68,60.16687937]
[1743778934060,0.05832209,118.74,118.71,0.05371663]
[1743778934262,48.68,118.77,118.71,0.05371663]
[1743778934561,8.426,118.73,118.71,0.05371663]
[1743778934758,0.05819428,118.74,118.71,0.05371663]
[1743778934954,1.46554084,118.85,118.73,60.16687937]
[1743778935162,351.62,118.86,118.76,60.16687937]
[1743778935359,8.4248,118.75,118.69,8.4282]
[1743778935663,303.16,118.78,118.7,226.50922768]
[1743778936168,0.05688649,118.75,118.73,0.05610406]
[1743778936467,8.4249,118.74,118.73,0.05610406]
[1743778936666,0.05688649,118.75,118.73,0.05610406]
[1743778937055,108.88687937,118.82,118.73,0.05610406]
[1743778937266,48.72,118.82,118.73,60.16687937]
[1743778937465,303.16,118.84,118.73,60.16687937]
[1743778937960,60.16687937,118.83,118.71,226.50922768]
[1743778938166,0.05947586,118.8,118.77,0.05916259]
[1743778938556,0.0059811,118.8,118.77,0.05916259]
[1743778938966,8.4221,118.78,118.77,0.05916259]
[1743778939269,0.0059811,118.8,118.77,60.22604196]
[1743778939565,0.0059811,118.8,118.77,0.05916259]
[1743778939961,0.0059811,118.8,118.78,60.16687937]
[1743778940164,0.0059811,118.8,118.79,57.2614]
[1743778940366,61.63137174,118.93,118.79,48.84]
[1743778940567,8.4138,118.9,118.86,8.4163]
[1743778940769,363.30687937,118.96,118.86,48.82]
[1743778941061,8.4165,118.86,118.82,60.16687937]
[1743778941260,60.16687937,118.94,118.83,48.82]
[1743778941466,0.06047638,118.85,118.83,48.88027053]
[1743778941661,8.4152,118.88,118.83,57.2384]
[1743778941867,0.05943527,118.85,118.83,226.56677749]
[1743778942062,60.16687937,118.92,118.83,226.50922768]
[1743778942262,60.16687937,118.92,118.83,226.57188361]
[1743778942467,0.05326246,118.85,118.83,226.57188361]
[1743778942666,351.96,118.93,118.83,226.50922768]
[1743778942865,0.05958408,118.85,118.83,226.57035064]
[1743778943164,0.06090037,118.85,118.84,68.58447937]
[1743778943468,8.414,118.9,118.84,60.16687937]
[1743778943666,8.414,118.9,118.83,132.48335341]
[1743778943667,48.66,118.96,118.86,60.16687937]
[1743778943867,48.66,118.96,118.87,48.98]
[1743778944269,60.16687937,118.97,118.87,48.98]
[1743778944469,0.03873883,118.93,118.9,0.06211715]
[1743778944865,0.03873883,118.93,118.87,48.98]
[1743778945069,0.03873883,118.93,118.9,0.06415969]
[1743778945264,0.03873883,118.93,118.91,49.0]
[1743778946267,0.03873883,118.93,118.9,0.06415969]
[1743778946967,0.03873883,118.93,118.86,60.16687937]
[1743778947370,0.03873883,118.93,118.87,8.4153]
[1743778947569,0.03873883,118.93,118.88,60.16687937]
[1743778947966,0.03873883,118.93,118.87,49.28]
[1743778948274,352.28,119.01,118.91,60.16687937]
[1743778948468,352.28,119.01,118.9,60.16687937]
[1743778948862,61.63014017,119.04,118.9,60.16687937]
[1743778949075,60.16687937,119.09,118.96,60.16687937]
[1743778949275,60.16687937,119.22,119.04,60.16687937]
[1743778949468,1.46215416,119.19,119.1,60.16687937]
[1743778949669,302.88,119.32,119.1,60.16687937]
[1743778949670,302.88,119.33,119.15,60.16687937]
[1743778949972,302.88,119.33,119.1,60.16687937]
[1743778949973,60.16687937,119.32,119.21,60.16687937]
[1743778950267,0.05391713,119.25,119.23,60.23026434]
[1743778950466,25.1394,119.38,119.24,60.16687937]
[1743778950668,60.16687937,119.4,119.28,60.16687937]
[1743778950869,363.04687937,119.4,119.28,60.16687937]
[1743778951070,60.16687937,119.36,119.25,60.16687937]
[1743778951270,18.43378217,119.39,119.22,60.16687937]
[1743778951471,8.3874,119.28,119.26,60.16687937]
[1743778951672,60.16687937,119.43,119.29,0.06106055]
[1743778951878,49.72,119.44,119.34,60.16687937]
[1743778952070,8.3794,119.39,119.35,0.05859151]
[1743778952271,49.66,119.52,119.38,60.16687937]
[1743778952474,302.58,119.53,119.38,109.82687937]
[1743778952771,60.16687937,119.49,119.27,60.16687937]
[1743778952972,60.16687937,119.53,119.44,0.05670532]
[1743778953176,60.16687937,119.47,119.34,60.16687937]
[1743778953374,352.16,119.46,119.34,60.16687937]
[1743778953672,302.58,119.46,119.34,60.16687937]
[1743778953872,352.28,119.46,119.34,109.86687937]
[1743778954174,49.9,119.45,119.34,60.16687937]
[1743778954368,0.05952265,119.41,119.39,0.06002001]
[1743778954677,8.3783,119.4,119.39,0.06002001]
[1743778955072,0.05952265,119.41,119.39,0.06002001]
[1743778955279,0.00820984,119.45,119.39,0.06002001]
[1743778955479,302.28,119.51,119.39,0.06002001]
[1743778955681,8.3757,119.44,119.39,0.06002001]
[1743778955873,50.06,119.5,119.38,60.16687937]
[1743778956476,302.28,119.51,119.43,0.06285773]
[1743778956781,302.28,119.51,119.41,60.16687937]
[1743778956979,302.28,119.51,119.46,2.615e-05]
[1743778957176,60.16687937,119.49,119.46,2.615e-05]
[1743778957381,50.24,119.48,119.35,50.22]
[1743778957785,60.16687937,119.49,119.35,50.22]
[1743778957786,8.3768,119.43,119.37,60.16687937]
[1743778958081,302.28,119.51,119.4,60.16687937]
[1743778958276,8.3749,119.45,119.41,50.36]
[1743778958481,0.05989143,119.47,119.42,60.16687937]
[1743778958778,8.3756,119.44,119.42,0.05809542]
[1743778958981,0.06268628,119.46,119.42,0.05809542]
[1743778959182,0.06268628,119.46,119.4,60.16687937]